Workbook

Sheet Dateneingabe
A1: lfd Nr | B1: Bezeichnung | C1: Wert | D1: Menge | G1: Staffelung | H1: kumulativ
A2: 0 | B2: Möbelstück | C2: Einkaufspreis | D2: Anzahl | G2: 0.65 | H2: =G2 -> 0.65 | I2: =H2 -> 0.65 | J2: =I2 -> 0.65 | K2: 0.65 | L2: 0.65 | M2: 0.65 | N2: 0.65 | O2: 0.65 | P2: 0.65 | Q2: 0.65 | R2: 0.65 | S2: 0.65 | T2: 0.65 | U2: 0.65 | V2: 0.65 | W2: 0.65 | X2: 0.65 | Y2: 0.65 | Z2: =Y2 -> 0.65 | AA2: 0.65 | AB2: 0.65 | AC2: 0.65
A3: 1 | B3: Bürostuhl | C3: 241 | D3: 10 | G3: 0.25 | H3: =H2+G3 -> 0.9 | I3: =H3 -> 0.9 | J3: 0.9 | K3: 0.9 | L3: 0.9 | M3: 0.9 | N3: 0.9 | O3: 0.9 | P3: 0.9 | Q3: 0.9 | R3: 0.9 | S3: 0.9 | T3: 0.9 | U3: 0.9 | V3: 0.9 | W3: 0.9 | X3: 0.9 | Y3: 0.9 | Z3: 0.9 | AA3: 0.9 | AB3: 0.9 | AC3: 0.9
A4: 2 | B4: Beistellstuhlerl | C4: 83 | D4: 17 | G4: 0.1 | H4: =H3+G4 -> 1 | I4: 1 | J4: 1 | K4: 1 | L4: 1 | M4: 1 | N4: 1 | O4: 1 | P4: 1 | Q4: 1 | R4: 1 | S4: 1 | T4: 1 | U4: 1 | V4: 1 | W4: 1 | X4: 1 | Y4: 1 | Z4: 1 | AA4: 1 | AB4: 1 | AC4: 1
A5: 3 | B5: Tisch | C5: 443 | D5: 20 | H5: =IF(H4<>1,"ö","") -> 
A6: 4 | B6: Container | C6: 299 | D6: 32 | G6: =IF(H4<>1,"Die Summe der Staffelung muss 100% ergeben!","") -> 
A7: 5 | B7: Hängeschrank | C7: 125 | D7: 5
A8: 6 | B8: PC-Ansatz | C8: 77 | D8: 72
A9: 7 | B9: Besprechungstisch | C9: 336 | D9: 36
A10: 8 | B10: Flügeltürschrank 80 cm | C10: 579 | D10: 54
A11: 9 | B11: Flügeltürschrank 100 cm | C11: 679 | D11: 33
A12: 10 | B12: Flügeltürschrank 120 cm | C12: 779 | D12: 17
A13: 11 | B13: Sideboard | C13: 337 | D13: 69
A14: 12 | B14: Besprechungsstuhl | C14: 90 | D14: 59
A15: 13 | B15: Chefsessel | C15: 721 | D15: 36
A16: 14 | B16: Standcontainer | C16: 333 | D16: 43
A17: 15 | B17: Bild | C17: 23 | D17: 65
A18: 16 | B18: Unterschrank | C18: 266 | D18: 24
A19: 17 | B19: Verkettung | C19: 17 | D19: 55
A20: 18 | B20: Ansatzplatte rund | C20: 76 | D20: 18
A21: 19 | B21: Ansatzplatte eckig | C21: 59 | D21: 74
A22: 20 | B22: Ansatzplatte oval | C22: 112 | D22: 42

Sheet ABC-Analyse (hidden)
B2: =Dateneingabe!B2 -> Möbelstück | C2: =Dateneingabe!C2 -> Einkaufspreis | D2: =Dateneingabe!D2 -> Anzahl | E2: Gesamtwert | F2: Relativ | G2: Kumuliert | H2: Wert relativ | I2: Wert kumuliert | J2: Menge relativ | K2: Menge kumuliert | L2: ABC-Einstufung
G3: 0
B4: Flügeltürschrank 80 cm | C4: 579 | D4: 54 | E4: =C4*D4 -> 31266 | F4: =E4/SUM($E$4:$E$23) -> 0.1599120295 | G4: =IF(ISTEXT(G3),F4,G3+F4) -> 0.1599120295 | H4: =C4/SUM($C$4:$C$23) -> 0.1020264317 | I4: =IF(ISTEXT(I2),H4,H4+I2) -> 0.1020264317 | J4: =D4/SUM($D$4:$D$23) -> 0.06914212548 | K4: =IF(ISTEXT(K2),J4,J4+K2) -> 0.06914212548 | L4: =IF(G4<=Dateneingabe!$H$2,"A",IF(G4<=Dateneingabe!$H$3,"B","C")) -> A
B5: Chefsessel | C5: 721 | D5: 36 | E5: 25956 | F5: 0.1327536825 | G5: 0.2926657119 | H5: 0.1270484581 | I5: =IF(ISTEXT(I4),H5,H5+I4) -> 0.2290748899 | J5: 0.04609475032 | K5: =IF(ISTEXT(K4),J5,J5+K4) -> 0.1152368758 | L5: =IF(G5<=Dateneingabe!$H$2,"A",IF(G5<=Dateneingabe!$H$3,"B","C")) -> A
B6: Sideboard | C6: 337 | D6: 69 | E6: 23253 | F6: 0.1189290098 | G6: 0.4115947218 | H6: 0.05938325991 | I6: 0.2884581498 | J6: 0.08834827145 | K6: 0.2035851472 | L6: =IF(G6<=Dateneingabe!$H$2,"A",IF(G6<=Dateneingabe!$H$3,"B","C")) -> A
B7: Flügeltürschrank 100 cm | C7: 679 | D7: 33 | E7: 22407 | F7: 0.1146020867 | G7: 0.5261968085 | H7: 0.1196475771 | I7: 0.4081057269 | J7: 0.04225352113 | K7: 0.2458386684 | L7: =IF(G7<=Dateneingabe!$H$2,"A",IF(G7<=Dateneingabe!$H$3,"B","C")) -> A
B8: Standcontainer | C8: 333 | D8: 43 | E8: 14319 | F8: 0.07323547463 | G8: 0.5994322831 | H8: 0.0586784141 | I8: 0.466784141 | J8: 0.05505761844 | K8: 0.3008962868 | L8: =IF(G8<=Dateneingabe!$H$2,"A",IF(G8<=Dateneingabe!$H$3,"B","C")) -> A
B9: Flügeltürschrank 120 cm | C9: 779 | D9: 17 | E9: 13243 | F9: 0.06773220131 | G9: 0.6671644845 | H9: 0.1372687225 | I9: 0.6040528634 | J9: 0.02176696543 | K9: 0.3226632522 | L9: =IF(G9<=Dateneingabe!$H$2,"A",IF(G9<=Dateneingabe!$H$3,"B","C")) -> B
B10: Besprechungstisch | C10: 336 | D10: 36 | E10: 12096 | F10: 0.06186579378 | G10: 0.7290302782 | H10: 0.05920704846 | I10: 0.6632599119 | J10: 0.04609475032 | K10: 0.3687580026 | L10: =IF(G10<=Dateneingabe!$H$2,"A",IF(G10<=Dateneingabe!$H$3,"B","C")) -> B
B11: Container | C11: 299 | D11: 32 | E11: 9568 | F11: 0.04893617021 | G11: 0.7779664484 | H11: 0.05268722467 | I11: 0.7159471366 | J11: 0.0409731114 | K11: 0.409731114 | L11: =IF(G11<=Dateneingabe!$H$2,"A",IF(G11<=Dateneingabe!$H$3,"B","C")) -> B
B12: Tisch | C12: 443 | D12: 20 | E12: 8860 | F12: 0.04531505728 | G12: 0.8232815057 | H12: 0.07806167401 | I12: 0.7940088106 | J12: 0.02560819462 | K12: 0.4353393086 | L12: =IF(G12<=Dateneingabe!$H$2,"A",IF(G12<=Dateneingabe!$H$3,"B","C")) -> B
B13: Unterschrank | C13: 266 | D13: 24 | E13: 6384 | F13: 0.03265139116 | G13: 0.8559328969 | H13: 0.0468722467 | I13: 0.8408810573 | J13: 0.03072983355 | K13: 0.4660691421 | L13: =IF(G13<=Dateneingabe!$H$2,"A",IF(G13<=Dateneingabe!$H$3,"B","C")) -> B
B14: PC-Ansatz | C14: 77 | D14: 72 | E14: 5544 | F14: 0.02835515548 | G14: 0.8842880524 | H14: 0.01356828194 | I14: 0.8544493392 | J14: 0.09218950064 | K14: 0.5582586428 | L14: =IF(G14<=Dateneingabe!$H$2,"A",IF(G14<=Dateneingabe!$H$3,"B","C")) -> B
B15: Besprechungsstuhl | C15: 90 | D15: 59 | E15: 5310 | F15: 0.02715834697 | G15: 0.9114463993 | H15: 0.01585903084 | I15: 0.87030837 | J15: 0.07554417414 | K15: 0.6338028169 | L15: =IF(G15<=Dateneingabe!$H$2,"A",IF(G15<=Dateneingabe!$H$3,"B","C")) -> C
B16: Ansatzplatte oval | C16: 112 | D16: 42 | E16: 4704 | F16: 0.0240589198 | G16: 0.9355053191 | H16: 0.01973568282 | I16: 0.8900440529 | J16: 0.05377720871 | K16: 0.6875800256 | L16: =IF(G16<=Dateneingabe!$H$2,"A",IF(G16<=Dateneingabe!$H$3,"B","C")) -> C
B17: Ansatzplatte eckig | C17: 59 | D17: 74 | E17: 4366 | F17: 0.0223301964 | G17: 0.9578355155 | H17: 0.01039647577 | I17: 0.9004405286 | J17: 0.0947503201 | K17: 0.7823303457 | L17: =IF(G17<=Dateneingabe!$H$2,"A",IF(G17<=Dateneingabe!$H$3,"B","C")) -> C
B18: Bürostuhl | C18: 241 | D18: 10 | E18: 2410 | F18: 0.01232610475 | G18: 0.9701616203 | H18: 0.04246696035 | I18: 0.942907489 | J18: 0.01280409731 | K18: 0.795134443 | L18: =IF(G18<=Dateneingabe!$H$2,"A",IF(G18<=Dateneingabe!$H$3,"B","C")) -> C
B19: Bild | C19: 23 | D19: 65 | E19: 1495 | F19: 0.007646276596 | G19: 0.9778078969 | H19: 0.004052863436 | I19: 0.9469603524 | J19: 0.08322663252 | K19: 0.8783610755 | L19: =IF(G19<=Dateneingabe!$H$2,"A",IF(G19<=Dateneingabe!$H$3,"B","C")) -> C
B20: Beistellstuhlerl | C20: 83 | D20: 17 | E20: 1411 | F20: 0.007216653028 | G20: 0.9850245499 | H20: 0.01462555066 | I20: 0.9615859031 | J20: 0.02176696543 | K20: 0.900128041 | L20: =IF(G20<=Dateneingabe!$H$2,"A",IF(G20<=Dateneingabe!$H$3,"B","C")) -> C
B21: Ansatzplatte rund | C21: 76 | D21: 18 | E21: 1368 | F21: 0.006996726678 | G21: 0.9920212766 | H21: 0.01339207048 | I21: 0.9749779736 | J21: 0.02304737516 | K21: 0.9231754161 | L21: =IF(G21<=Dateneingabe!$H$2,"A",IF(G21<=Dateneingabe!$H$3,"B","C")) -> C
B22: Verkettung | C22: 17 | D22: 55 | E22: 935 | F22: 0.004782119476 | G22: 0.9968033961 | H22: 0.002995594714 | I22: 0.9779735683 | J22: 0.07042253521 | K22: 0.9935979513 | L22: =IF(G22<=Dateneingabe!$H$2,"A",IF(G22<=Dateneingabe!$H$3,"B","C")) -> C
B23: Hängeschrank | C23: 125 | D23: 5 | E23: 625 | F23: 0.003196603928 | G23: 1 | H23: 0.02202643172 | I23: 1 | J23: 0.006402048656 | K23: 1 | L23: =IF(G23<=Dateneingabe!$H$2,"A",IF(G23<=Dateneingabe!$H$3,"B","C")) -> C
I25: ABC-Analyse Demoversion © Dietmar Brunner 2020

Sheet Auswertung grafisch (hidden)
K2: VEKTORDATEN
K3: Diff 1 | L3: x | M3: d | N3: a | O3: b | P3: Linie 1 x | Q3: Linie 1 y | R3: Diff 2 | S3: x
K4: =ABS(N4-M4) -> 0.4900879705 | L4: =Dateneingabe!A3 -> 1 | M4: ='ABC-Analyse'!G4 -> 0.1599120295 | N4: =Dateneingabe!H2 -> 0.65 | O4: =Dateneingabe!H3 -> 0.9 | P4: =VLOOKUP(P8,K4:L23,2,FALSE) -> 6 | Q4: 0 | R4: =ABS(O4-M4) -> 0.7400879705 | S4: =L4 -> 1
K5: 0.3573342881 | L5: =Dateneingabe!A4 -> 2 | M5: ='ABC-Analyse'!G5 -> 0.2926657119 | N5: =$N$4 -> 0.65 | O5: =$O$4 -> 0.9 | P5: =P4 -> 6 | Q5: =Dateneingabe!G2 -> 0.65 | R5: 0.6073342881 | S5: 2
K6: 0.2384052782 | L6: =Dateneingabe!A5 -> 3 | M6: ='ABC-Analyse'!G6 -> 0.4115947218 | N6: 0.65 | O6: 0.9 | R6: 0.4884052782 | S6: 3
K7: 0.1238031915 | L7: =Dateneingabe!A6 -> 4 | M7: ='ABC-Analyse'!G7 -> 0.5261968085 | N7: 0.65 | O7: 0.9 | P7: min diff 1 | Q7: min diff 2 | R7: 0.3738031915 | S7: 4
K8: 0.05056771686 | L8: =Dateneingabe!A7 -> 5 | M8: ='ABC-Analyse'!G8 -> 0.5994322831 | N8: 0.65 | O8: 0.9 | P8: =MIN(K4:K23) -> 0.01716448445 | Q8: =MIN(R4:R23) -> 0.01144639935 | R8: 0.3005677169 | S8: 5
K9: 0.01716448445 | L9: =Dateneingabe!A8 -> 6 | M9: ='ABC-Analyse'!G9 -> 0.6671644845 | N9: 0.65 | O9: 0.9 | R9: 0.2328355155 | S9: 6
K10: 0.07903027823 | L10: =Dateneingabe!A9 -> 7 | M10: ='ABC-Analyse'!G10 -> 0.7290302782 | N10: 0.65 | O10: 0.9 | P10: Linie 2 x | Q10: Linie 2 y | R10: 0.1709697218 | S10: 7
K11: 0.1279664484 | L11: =Dateneingabe!A10 -> 8 | M11: ='ABC-Analyse'!G11 -> 0.7779664484 | N11: 0.65 | O11: 0.9 | P11: =VLOOKUP(Q8,R4:S23,2,FALSE) -> 12 | Q11: 0 | R11: 0.1220335516 | S11: 8
K12: 0.1732815057 | L12: =Dateneingabe!A11 -> 9 | M12: ='ABC-Analyse'!G12 -> 0.8232815057 | N12: 0.65 | O12: 0.9 | P12: =P11 -> 12 | Q12: =Dateneingabe!H3 -> 0.9 | R12: 0.07671849427 | S12: 9
K13: 0.2059328969 | L13: =Dateneingabe!A12 -> 10 | M13: ='ABC-Analyse'!G13 -> 0.8559328969 | N13: 0.65 | O13: 0.9 | R13: 0.04406710311 | S13: 10
K14: 0.2342880524 | L14: =Dateneingabe!A13 -> 11 | M14: ='ABC-Analyse'!G14 -> 0.8842880524 | N14: 0.65 | O14: 0.9 | R14: 0.01571194763 | S14: 11
K15: 0.2614463993 | L15: =Dateneingabe!A14 -> 12 | M15: ='ABC-Analyse'!G15 -> 0.9114463993 | N15: 0.65 | O15: 0.9 | R15: 0.01144639935 | S15: 12
K16: 0.2855053191 | L16: =Dateneingabe!A15 -> 13 | M16: ='ABC-Analyse'!G16 -> 0.9355053191 | N16: 0.65 | O16: 0.9 | R16: 0.03550531915 | S16: 13
K17: 0.3078355155 | L17: =Dateneingabe!A16 -> 14 | M17: ='ABC-Analyse'!G17 -> 0.9578355155 | N17: 0.65 | O17: 0.9 | R17: 0.05783551555 | S17: 14
K18: 0.3201616203 | L18: =Dateneingabe!A17 -> 15 | M18: ='ABC-Analyse'!G18 -> 0.9701616203 | N18: 0.65 | O18: 0.9 | R18: 0.07016162029 | S18: 15
K19: 0.3278078969 | L19: =Dateneingabe!A18 -> 16 | M19: ='ABC-Analyse'!G19 -> 0.9778078969 | N19: 0.65 | O19: 0.9 | P19: A | R19: 0.07780789689 | S19: 16
K20: 0.3350245499 | L20: =Dateneingabe!A19 -> 17 | M20: ='ABC-Analyse'!G20 -> 0.9850245499 | N20: 0.65 | O20: 0.9 | P20: B | R20: 0.08502454992 | S20: 17
K21: 0.3420212766 | L21: =Dateneingabe!A20 -> 18 | M21: ='ABC-Analyse'!G21 -> 0.9920212766 | N21: 0.65 | O21: 0.9 | P21: C | R21: 0.0920212766 | S21: 18
K22: 0.3468033961 | L22: =Dateneingabe!A21 -> 19 | M22: ='ABC-Analyse'!G22 -> 0.9968033961 | N22: 0.65 | O22: 0.9 | R22: 0.09680339607 | S22: 19
K23: 0.35 | L23: =Dateneingabe!A22 -> 20 | M23: ='ABC-Analyse'!G23 -> 1 | N23: 0.65 | O23: 0.9 | R23: 0.1 | S23: 20
K31: VERTEILUNG:
L33: A Menge von | N33: =MIN(IF('ABC-Analyse'!$L$4:$L$23="A",'ABC-Analyse'!$K$4:$K$23)) -> 0.06914212548 | O33: =MIN(IF('ABC-Analyse'!$L$4:$L$23="A",'ABC-Analyse'!$I$4:$I$23)) -> 0.1020264317
L34: A Menge bis | N34: =MAX(IF('ABC-Analyse'!$L$4:$L$23="A",'ABC-Analyse'!$K$4:$K$23)) -> 0.3008962868 | O34: =MIN(IF('ABC-Analyse'!$L$4:$L$23="A",'ABC-Analyse'!$I$4:$I$23)) -> 0.1020264317
L35: A Wert von | N35: =MAX(IF('ABC-Analyse'!$L$4:$L$23="A",'ABC-Analyse'!$K$4:$K$23)) -> 0.3008962868 | O35: =MAX(IF('ABC-Analyse'!$L$4:$L$23="A",'ABC-Analyse'!$I$4:$I$23)) -> 0.466784141
L36: A Wert bis | N36: =MIN(IF('ABC-Analyse'!$L$4:$L$23="A",'ABC-Analyse'!$K$4:$K$23)) -> 0.06914212548 | O36: =MAX(IF('ABC-Analyse'!$L$4:$L$23="A",'ABC-Analyse'!$I$4:$I$23)) -> 0.466784141
L37: A Vektor | N37: =MIN(IF('ABC-Analyse'!$L$4:$L$23="A",'ABC-Analyse'!$K$4:$K$23)) -> 0.06914212548 | O37: =MIN(IF('ABC-Analyse'!$L$4:$L$23="A",'ABC-Analyse'!$I$4:$I$23)) -> 0.1020264317
L38: B Menge von | N38: =MIN(IF('ABC-Analyse'!$L$4:$L$23="B",'ABC-Analyse'!$K$4:$K$23)) -> 0.3226632522 | O38: =MIN(IF('ABC-Analyse'!$L$4:$L$23="B",'ABC-Analyse'!$I$4:$I$23)) -> 0.6040528634
L39: B Menge bis | N39: =MAX(IF('ABC-Analyse'!$L$4:$L$23="B",'ABC-Analyse'!$K$4:$K$23)) -> 0.5582586428 | O39: =MIN(IF('ABC-Analyse'!$L$4:$L$23="B",'ABC-Analyse'!$I$4:$I$23)) -> 0.6040528634
L40: B Wert von | N40: =MAX(IF('ABC-Analyse'!$L$4:$L$23="B",'ABC-Analyse'!$K$4:$K$23)) -> 0.5582586428 | O40: =MAX(IF('ABC-Analyse'!$L$4:$L$23="B",'ABC-Analyse'!$I$4:$I$23)) -> 0.8544493392
L41: B Wert bis | N41: =MIN(IF('ABC-Analyse'!$L$4:$L$23="B",'ABC-Analyse'!$K$4:$K$23)) -> 0.3226632522 | O41: =MAX(IF('ABC-Analyse'!$L$4:$L$23="B",'ABC-Analyse'!$I$4:$I$23)) -> 0.8544493392
L42: B Vektor | N42: =MIN(IF('ABC-Analyse'!$L$4:$L$23="B",'ABC-Analyse'!$K$4:$K$23)) -> 0.3226632522 | O42: =MIN(IF('ABC-Analyse'!$L$4:$L$23="B",'ABC-Analyse'!$I$4:$I$23)) -> 0.6040528634
L43: C Menge von | N43: =MIN(IF('ABC-Analyse'!$L$4:$L$23="C",'ABC-Analyse'!$K$4:$K$23)) -> 0.6338028169 | O43: =MIN(IF('ABC-Analyse'!$L$4:$L$23="C",'ABC-Analyse'!$I$4:$I$23)) -> 0.87030837
L44: C Menge bis | N44: =MAX(IF('ABC-Analyse'!$L$4:$L$23="C",'ABC-Analyse'!$K$4:$K$23)) -> 1 | O44: =MIN(IF('ABC-Analyse'!$L$4:$L$23="C",'ABC-Analyse'!$I$4:$I$23)) -> 0.87030837
L45: C Wert von | N45: =MAX(IF('ABC-Analyse'!$L$4:$L$23="C",'ABC-Analyse'!$K$4:$K$23)) -> 1 | O45: =MAX(IF('ABC-Analyse'!$L$4:$L$23="C",'ABC-Analyse'!$I$4:$I$23)) -> 1
L46: C Wert bis | N46: =MIN(IF('ABC-Analyse'!$L$4:$L$23="C",'ABC-Analyse'!$K$4:$K$23)) -> 0.6338028169 | O46: =MAX(IF('ABC-Analyse'!$L$4:$L$23="C",'ABC-Analyse'!$I$4:$I$23)) -> 1
L47: C Vektor | N47: =MIN(IF('ABC-Analyse'!$L$4:$L$23="C",'ABC-Analyse'!$K$4:$K$23)) -> 0.6338028169 | O47: =MIN(IF('ABC-Analyse'!$L$4:$L$23="C",'ABC-Analyse'!$I$4:$I$23)) -> 0.87030837
